[Event "Titled Tuesday Blitz November 01 Late 2022"]
[White "Kirillov, Dmitry"]
[Black "Sanchez, Robert"]
[WhiteFideId "34180572"]
[BlackFideId "2034360"]
[WhiteElo "2095"]
[BlackElo "2397"]
[Result "1-0"]
[Round "10"]
[TimeControl "180+1"]
[Date "2022.11.02"]
[WhiteClock "0:00:03"]
[BlackClock "0:00:01"]

1. e4 {[%clk 0:03:00]}  e6 {[%clk 0:02:58]} 2. d4 {[%clk 0:03:00]}  d5 {[%clk 0:02:58]} 3. Nd2 {[%clk 0:03:01]}  Nf6 {[%clk 0:02:58]} 4. e5 {[%clk 0:03:01]}  Nfd7 {[%clk 0:02:58]} 5. Bd3 {[%clk 0:03:01]}  c5 {[%clk 0:02:59]} 6. c3 {[%clk 0:03:02]}  Nc6 {[%clk 0:02:59]} 7. Ne2 {[%clk 0:03:02]}  cxd4 {[%clk 0:02:59]} 8. cxd4 {[%clk 0:03:03]}  f6 {[%clk 0:03:00]} 9. exf6 {[%clk 0:03:03]}  Nxf6 {[%clk 0:03:01]} 10. Nf3 {[%clk 0:03:03]}  Bd6 {[%clk 0:03:01]} 11. O-O {[%clk 0:03:03]}  Qc7 {[%clk 0:03:01]} 12. Ng3 {[%clk 0:02:51]}  O-O {[%clk 0:02:59]} 13. Re1 {[%clk 0:02:49]}  Bd7 {[%clk 0:02:53]} 14. a3 {[%clk 0:02:47]}  e5 {[%clk 0:02:32]} 15. dxe5 {[%clk 0:02:46]}  Nxe5 {[%clk 0:02:30]} 16. Nxe5 {[%clk 0:02:46]}  Bxe5 {[%clk 0:02:30]} 17. Bg5 {[%clk 0:02:17]}  Ng4 {[%clk 0:02:18]} 18. Re2 {[%clk 0:01:45]}  Qb6 {[%clk 0:01:12]} 19. Qd2 {[%clk 0:01:16]}  Rf7 {[%clk 0:00:40]} 20. Rae1 {[%clk 0:01:03]}  Raf8 {[%clk 0:00:37]} 21. Rf1 {[%clk 0:00:42]}  Bd4 {[%clk 0:00:28]} 22. Nh1 {[%clk 0:00:31]}  h6 {[%clk 0:00:18]} 23. Bh4 {[%clk 0:00:29]}  g5 {[%clk 0:00:16]} 24. Bg3 {[%clk 0:00:29]}  Qf6 {[%clk 0:00:12]} 25. h3 {[%clk 0:00:26]}  Ne5 {[%clk 0:00:11]} 26. Bb1 {[%clk 0:00:16]}  Bb5 {[%clk 0:00:06]} 27. Rfe1 {[%clk 0:00:05]}  Bxe2 {[%clk 0:00:06]} 28. Rxe2 {[%clk 0:00:06]}  Nc4 {[%clk 0:00:05]} 29. Qd3 {[%clk 0:00:05]}  Nxb2 {[%clk 0:00:03]} 30. Qc2 {[%clk 0:00:03]}  Nc4 {[%clk 0:00:02]} 31. Qd3 {[%clk 0:00:04]}  Ne5 {[%clk 0:00:01]} 32. Qc2 {[%clk 0:00:03]} 1-0


[Site "https://www.chess.com"]

[Event "Titled Tuesday Blitz November 01 Late 2022"]
[White "Lazavik, Denis"]
[Black "Rasulov, Vugar"]
[WhiteFideId "13515110"]
[BlackFideId "13402390"]
[WhiteElo "2437"]
[BlackElo "2509"]
[Result "1/2-1/2"]
[Round "10"]
[TimeControl "180+1"]
[Date "2022.11.01"]
[WhiteClock "0:00:08"]
[BlackClock "0:00:02"]

1. d4 {[%clk 0:03:00]}  Nf6 {[%clk 0:02:59]} 2. c4 {[%clk 0:03:01]}  e6 {[%clk 0:03:00]} 3. g3 {[%clk 0:03:01]}  c5 {[%clk 0:02:59]} 4. d5 {[%clk 0:03:02]}  exd5 {[%clk 0:03:00]} 5. cxd5 {[%clk 0:03:03]}  d6 {[%clk 0:03:01]} 6. Nc3 {[%clk 0:03:03]}  g6 {[%clk 0:03:01]} 7. Bg2 {[%clk 0:03:04]}  Bg7 {[%clk 0:03:02]} 8. Nf3 {[%clk 0:03:04]}  O-O {[%clk 0:03:03]} 9. O-O {[%clk 0:03:05]}  Re8 {[%clk 0:03:03]} 10. Re1 {[%clk 0:03:05]}  a6 {[%clk 0:03:01]} 11. a4 {[%clk 0:03:05]}  Nbd7 {[%clk 0:03:01]} 12. Bf4 {[%clk 0:03:06]}  Qc7 {[%clk 0:02:55]} 13. e4 {[%clk 0:03:06]}  Ng4 {[%clk 0:02:55]} 14. Qc2 {[%clk 0:02:53]}  Rb8 {[%clk 0:02:53]} 15. Bf1 {[%clk 0:02:50]}  Nge5 {[%clk 0:02:52]} 16. Nd2 {[%clk 0:02:50]}  c4 {[%clk 0:02:46]} 17. a5 {[%clk 0:02:44]}  b5 {[%clk 0:02:42]} 18. axb6 {[%clk 0:02:45]}  Rxb6 {[%clk 0:02:43]} 19. Be3 {[%clk 0:02:42]}  Rb4 {[%clk 0:02:40]} 20. Ra4 {[%clk 0:02:28]}  a5 {[%clk 0:02:29]} 21. Rxb4 {[%clk 0:02:07]}  axb4 {[%clk 0:02:30]} 22. Nb5 {[%clk 0:02:07]}  Qb8 {[%clk 0:02:30]} 23. Nd4 {[%clk 0:02:07]}  b3 {[%clk 0:02:20]} 24. Qc1 {[%clk 0:01:44]}  Nc5 {[%clk 0:02:19]} 25. Nc6 {[%clk 0:01:40]}  Nxc6 {[%clk 0:02:08]} 26. dxc6 {[%clk 0:01:41]}  c3 {[%clk 0:02:03]} 27. bxc3 {[%clk 0:01:40]}  Be6 {[%clk 0:01:56]} 28. Bd4 {[%clk 0:01:17]}  Qb6 {[%clk 0:01:40]} 29. Qa3 {[%clk 0:01:03]}  Qxc6 {[%clk 0:01:35]} 30. Qb4 {[%clk 0:01:03]}  Qc7 {[%clk 0:01:29]} 31. Bxg7 {[%clk 0:00:58]}  Kxg7 {[%clk 0:01:30]} 32. Qd4+ {[%clk 0:00:59]}  Kg8 {[%clk 0:01:30]} 33. Bc4 {[%clk 0:00:50]}  Rb8 {[%clk 0:01:26]} 34. Rb1 {[%clk 0:00:48]}  b2 {[%clk 0:01:22]} 35. Bxe6 {[%clk 0:00:42]}  Nxe6 {[%clk 0:01:23]} 36. Qc4 {[%clk 0:00:42]}  Qa5 {[%clk 0:01:19]} 37. Kg2 {[%clk 0:00:35]}  Nc5 {[%clk 0:01:19]} 38. Qd4 {[%clk 0:00:31]}  Rb6 {[%clk 0:00:53]} 39. h4 {[%clk 0:00:15]}  h5 {[%clk 0:00:45]} 40. Nc4 {[%clk 0:00:12]}  Qa2 {[%clk 0:00:45]} 41. Nd2 {[%clk 0:00:12]}  Na4 {[%clk 0:00:32]} 42. c4 {[%clk 0:00:07]}  Nc5 {[%clk 0:00:32]} 43. e5 {[%clk 0:00:07]}  Qa8+ {[%clk 0:00:10]} 44. Kg1 {[%clk 0:00:07]}  Qc6 {[%clk 0:00:07]} 45. exd6 {[%clk 0:00:07]}  Ne6 {[%clk 0:00:07]} 46. Qe5 {[%clk 0:00:05]}  Qc5 {[%clk 0:00:05]} 47. Qc3 {[%clk 0:00:03]}  Rxd6 {[%clk 0:00:03]} 48. Rxb2 {[%clk 0:00:04]}  Nd4 {[%clk 0:00:04]} 49. Ne4 {[%clk 0:00:04]}  Qe5 {[%clk 0:00:03]} 50. Qe3 {[%clk 0:00:03]}  Re6 {[%clk 0:00:02]} 51. Rd2 {[%clk 0:00:02]}  Nf5 {[%clk 0:00:01]} 52. Rd8+ {[%clk 0:00:02]}  Kg7 {[%clk 0:00:02]} 53. Qc3 {[%clk 0:00:02]}  Qxc3 {[%clk 0:00:02]} 54. Nxc3 {[%clk 0:00:03]}  Rc6 {[%clk 0:00:02]} 55. Ne4 {[%clk 0:00:03]}  Rxc4 {[%clk 0:00:03]} 56. Ng5 {[%clk 0:00:04]}  Rc1+ {[%clk 0:00:02]} 57. Kg2 {[%clk 0:00:04]}  Rc7 {[%clk 0:00:03]} 58. Ra8 {[%clk 0:00:04]}  Re7 {[%clk 0:00:03]} 59. Ra6 {[%clk 0:00:05]}  Nd4 {[%clk 0:00:03]} 60. Rd6 {[%clk 0:00:04]}  Nf5 {[%clk 0:00:03]} 61. Rd5 {[%clk 0:00:05]}  f6 {[%clk 0:00:03]} 62. Nh3 {[%clk 0:00:05]}  Re2 {[%clk 0:00:03]} 63. Ra5 {[%clk 0:00:03]}  Kh6 {[%clk 0:00:03]} 64. Nf4 {[%clk 0:00:03]}  Rb2 {[%clk 0:00:02]} 65. Ra6 {[%clk 0:00:03]}  Ne3+ {[%clk 0:00:02]} 66. Kf3 {[%clk 0:00:04]}  Ng4 {[%clk 0:00:03]} 67. Nh3 {[%clk 0:00:04]}  Rb3+ {[%clk 0:00:03]} 68. Kg2 {[%clk 0:00:05]}  Rb2 {[%clk 0:00:03]} 69. Ra8 {[%clk 0:00:05]}  Rc2 {[%clk 0:00:01]} 70. Kg1 {[%clk 0:00:05]}  Kg7 {[%clk 0:00:01]} 71. Ra7+ {[%clk 0:00:05]}  Kh6 {[%clk 0:00:02]} 72. Rb7 {[%clk 0:00:06]}  Ne5 {[%clk 0:00:02]} 73. Kg2 {[%clk 0:00:06]}  g5 {[%clk 0:00:02]} 74. hxg5+ {[%clk 0:00:06]}  fxg5 {[%clk 0:00:03]} 75. Rb6+ {[%clk 0:00:06]}  Ng6 {[%clk 0:00:03]} 76. Ra6 {[%clk 0:00:06]}  Rd2 {[%clk 0:00:03]} 77. Ng1 {[%clk 0:00:06]}  g4 {[%clk 0:00:03]} 78. Kf1 {[%clk 0:00:06]}  Kg5 {[%clk 0:00:03]} 79. Ra5+ {[%clk 0:00:06]}  Kf6 {[%clk 0:00:04]} 80. Rxh5 {[%clk 0:00:06]}  Ne5 {[%clk 0:00:03]} 81. Rh6+ {[%clk 0:00:06]}  Kg5 {[%clk 0:00:04]} 82. Re6 {[%clk 0:00:06]}  Kf5 {[%clk 0:00:03]} 83. Re8 {[%clk 0:00:07]}  Rd1+ {[%clk 0:00:04]} 84. Kg2 {[%clk 0:00:07]}  Nd3 {[%clk 0:00:04]} 85. Rf8+ {[%clk 0:00:07]}  Kg6 {[%clk 0:00:04]} 86. Rg8+ {[%clk 0:00:07]}  Kf5 {[%clk 0:00:04]} 87. Rf8+ {[%clk 0:00:07]}  Ke6 {[%clk 0:00:05]} 88. Ra8 {[%clk 0:00:03]}  Ne1+ {[%clk 0:00:05]} 89. Kh2 {[%clk 0:00:03]}  Rd2 {[%clk 0:00:05]} 90. Rf8 {[%clk 0:00:04]}  Nd3 {[%clk 0:00:03]} 91. Kg2 {[%clk 0:00:04]}  Ne1+ {[%clk 0:00:02]} 92. Kf1 {[%clk 0:00:04]}  Nd3 {[%clk 0:00:03]} 93. Re8+ {[%clk 0:00:03]}  Kf7 {[%clk 0:00:03]} 94. Re2 {[%clk 0:00:04]}  Rd1+ {[%clk 0:00:04]} 95. Kg2 {[%clk 0:00:04]}  Ne1+ {[%clk 0:00:04]} 96. Kh2 {[%clk 0:00:05]}  Kf6 {[%clk 0:00:05]} 97. Re4 {[%clk 0:00:04]}  Kf5 {[%clk 0:00:04]} 98. Rf4+ {[%clk 0:00:05]}  Kg5 {[%clk 0:00:05]} 99. Rf8 {[%clk 0:00:05]}  Nd3 {[%clk 0:00:04]} 100. f4+ {[%clk 0:00:05]}  Kg6 {[%clk 0:00:04]} 101. Kg2 {[%clk 0:00:06]}  Rd2+ {[%clk 0:00:04]} 102. Kh1 {[%clk 0:00:06]}  Nf2+ {[%clk 0:00:04]} 103. Kg2 {[%clk 0:00:06]}  Ne4+ {[%clk 0:00:05]} 104. Kf1 {[%clk 0:00:07]}  Nxg3+ {[%clk 0:00:05]} 105. Ke1 {[%clk 0:00:07]}  Rg2 {[%clk 0:00:06]} 106. f5+ {[%clk 0:00:05]}  Kg5 {[%clk 0:00:05]} 107. f6 {[%clk 0:00:05]}  Ne4 {[%clk 0:00:04]} 108. Ne2 {[%clk 0:00:05]}  Nxf6 {[%clk 0:00:03]} 109. Kf1 {[%clk 0:00:05]}  Rh2 {[%clk 0:00:04]} 110. Ng3 {[%clk 0:00:05]}  Rh3 {[%clk 0:00:04]} 111. Kg2 {[%clk 0:00:05]}  Kg6 {[%clk 0:00:05]} 112. Ra8 {[%clk 0:00:05]}  Rh7 {[%clk 0:00:05]} 113. Ra6 {[%clk 0:00:06]}  Re7 {[%clk 0:00:05]} 114. Rb6 {[%clk 0:00:05]}  Re5 {[%clk 0:00:05]} 115. Kf2 {[%clk 0:00:05]}  Kg5 {[%clk 0:00:06]} 116. Rb8 {[%clk 0:00:05]}  Nd7 {[%clk 0:00:05]} 117. Rg8+ {[%clk 0:00:05]}  Kf4 {[%clk 0:00:04]} 118. Rg7 {[%clk 0:00:05]}  Nc5 {[%clk 0:00:03]} 119. Rf7+ {[%clk 0:00:05]}  Kg5 {[%clk 0:00:03]} 120. Rg7+ {[%clk 0:00:06]}  Kf4 {[%clk 0:00:03]} 121. Rf7+ {[%clk 0:00:06]}  Kg5 {[%clk 0:00:04]} 122. Rg7+ {[%clk 0:00:07]}  Kf6 {[%clk 0:00:03]} 123. Rxg4 {[%clk 0:00:07]}  Nd3+ {[%clk 0:00:03]} 124. Kg2 {[%clk 0:00:08]}  Re3 {[%clk 0:00:03]} 125. Ra4 {[%clk 0:00:08]}  Ke5 {[%clk 0:00:02]} 126. Ra5+ {[%clk 0:00:07]}  Kf4 {[%clk 0:00:02]} 127. Ra4+ {[%clk 0:00:08]}  Ke5 {[%clk 0:00:03]} 128. Nf1 {[%clk 0:00:08]}  Nf4+ {[%clk 0:00:03]} 129. Rxf4 {[%clk 0:00:08]}  Kxf4 {[%clk 0:00:02]} 130. Nxe3 {[%clk 0:00:08]} 1/2-1/2


[Site "https://www.chess.com"]

[Event "Titled Tuesday Blitz November 01 Late 2022"]
[White "Maksimovic, Bojan"]
[Black "Weetik, Vjacheslav"]
[WhiteFideId "14408120"]
[BlackFideId "4153472"]
[WhiteElo "2447"]
[BlackElo "2469"]
[Result "0-1"]
[Round "10"]
[TimeControl "180+1"]
[Date "2022.11.01"]
[WhiteClock "0:00:01"]
[BlackClock "0:00:06"]

1. e4 {[%clk 0:03:00]}  c5 {[%clk 0:02:59]} 2. Nf3 {[%clk 0:03:01]}  Nc6 {[%clk 0:02:59]} 3. d4 {[%clk 0:03:01]}  cxd4 {[%clk 0:03:00]} 4. Nxd4 {[%clk 0:03:02]}  g6 {[%clk 0:03:01]} 5. Nc3 {[%clk 0:03:02]}  Bg7 {[%clk 0:03:01]} 6. Be3 {[%clk 0:03:03]}  Nf6 {[%clk 0:03:01]} 7. Nxc6 {[%clk 0:03:04]}  bxc6 {[%clk 0:03:00]} 8. e5 {[%clk 0:03:04]}  Ng8 {[%clk 0:03:01]} 9. Bd4 {[%clk 0:03:05]}  Qa5 {[%clk 0:02:58]} 10. f4 {[%clk 0:03:05]}  f6 {[%clk 0:02:48]} 11. Qe2 {[%clk 0:02:55]}  fxe5 {[%clk 0:02:45]} 12. Bxe5 {[%clk 0:02:52]}  Nf6 {[%clk 0:02:42]} 13. O-O-O {[%clk 0:02:49]}  O-O {[%clk 0:02:34]} 14. Bd4 {[%clk 0:02:28]}  d6 {[%clk 0:01:28]} 15. Qxe7 {[%clk 0:02:13]}  Bg4 {[%clk 0:01:27]} 16. Qxd6 {[%clk 0:01:43]}  Bxd1 {[%clk 0:01:11]} 17. Bc4+ {[%clk 0:01:44]}  Kh8 {[%clk 0:01:12]} 18. Rxd1 {[%clk 0:01:44]}  Rad8 {[%clk 0:01:05]} 19. Qxc6 {[%clk 0:01:43]}  Rc8 {[%clk 0:00:32]} 20. Qb5 {[%clk 0:01:43]}  Qc7 {[%clk 0:00:32]} 21. Bb3 {[%clk 0:00:51]}  Qxf4+ {[%clk 0:00:31]} 22. Kb1 {[%clk 0:00:52]}  Rcd8 {[%clk 0:00:27]} 23. Ne2 {[%clk 0:00:47]}  Qg4 {[%clk 0:00:22]} 24. c3 {[%clk 0:00:27]}  Rfe8 {[%clk 0:00:19]} 25. Bc4 {[%clk 0:00:24]}  Qxg2 {[%clk 0:00:15]} 26. a4 {[%clk 0:00:20]}  Ne4 {[%clk 0:00:06]} 27. Bxg7+ {[%clk 0:00:17]}  Kxg7 {[%clk 0:00:07]} 28. Rxd8 {[%clk 0:00:17]}  Rxd8 {[%clk 0:00:06]} 29. Qe5+ {[%clk 0:00:18]}  Kh6 {[%clk 0:00:05]} 30. Qf4+ {[%clk 0:00:15]}  Kg7 {[%clk 0:00:06]} 31. Qe5+ {[%clk 0:00:15]}  Kh6 {[%clk 0:00:06]} 32. Ka2 {[%clk 0:00:09]}  Nd2 {[%clk 0:00:04]} 33. Be6 {[%clk 0:00:03]}  Qg5 {[%clk 0:00:04]} 34. Qc7 {[%clk 0:00:02]}  Re8 {[%clk 0:00:05]} 35. Bd7 {[%clk 0:00:02]}  Re7 {[%clk 0:00:05]} 36. Nd4 {[%clk 0:00:01]}  Qe5 {[%clk 0:00:05]} 37. Qxe5 {[%clk 0:00:01]}  Rxe5 {[%clk 0:00:06]} 38. Nc6 {[%clk 0:00:01]}  Re2 {[%clk 0:00:06]} 0-1


[Site "https://www.chess.com"]

[Event "Titled Tuesday Blitz November 01 Late 2022"]
[White "Marcolino, Daniel Mattos"]
[Black "Buchenau, Frank"]
[WhiteFideId "2106841"]
[BlackFideId "4604350"]
[WhiteElo "2098"]
[BlackElo "2157"]
[Result "0-1"]
[Round "10"]
[TimeControl "180+1"]
[Date "2022.11.02"]
[WhiteClock "0:00:02"]
[BlackClock "0:00:19"]

1. d4 {[%clk 0:01:17]}  e6 {[%clk 0:02:58]} 2. Nf3 {[%clk 0:01:17]}  Nf6 {[%clk 0:02:58]} 3. g3 {[%clk 0:01:18]}  b6 {[%clk 0:02:59]} 4. Bg2 {[%clk 0:01:19]}  Bb7 {[%clk 0:02:59]} 5. O-O {[%clk 0:01:19]}  Be7 {[%clk 0:02:59]} 6. c4 {[%clk 0:01:18]}  O-O {[%clk 0:02:59]} 7. Nc3 {[%clk 0:01:19]}  Ne4 {[%clk 0:02:59]} 8. Qc2 {[%clk 0:01:18]}  Nxc3 {[%clk 0:02:58]} 9. Qxc3 {[%clk 0:01:19]}  f5 {[%clk 0:02:57]} 10. Rd1 {[%clk 0:01:19]}  Bf6 {[%clk 0:02:57]} 11. Ne5 {[%clk 0:01:18]}  Bxg2 {[%clk 0:02:56]} 12. Kxg2 {[%clk 0:01:19]}  Bxe5 {[%clk 0:02:52]} 13. dxe5 {[%clk 0:01:19]}  Qc8 {[%clk 0:02:40]} 14. Qf3 {[%clk 0:01:14]}  Nc6 {[%clk 0:02:39]} 15. Bf4 {[%clk 0:01:10]}  Ne7 {[%clk 0:02:19]} 16. h4 {[%clk 0:01:06]}  Ng6 {[%clk 0:02:19]} 17. Rd2 {[%clk 0:00:58]}  Nxf4+ {[%clk 0:02:15]} 18. Qxf4 {[%clk 0:00:58]}  Qb7+ {[%clk 0:02:11]} 19. Qf3 {[%clk 0:00:58]}  Qxf3+ {[%clk 0:02:06]} 20. Kxf3 {[%clk 0:00:59]}  Rf7 {[%clk 0:02:00]} 21. Rad1 {[%clk 0:00:59]}  Rd8 {[%clk 0:02:00]} 22. b4 {[%clk 0:00:58]}  Kf8 {[%clk 0:01:59]} 23. b5 {[%clk 0:00:38]}  Ke8 {[%clk 0:01:55]} 24. e4 {[%clk 0:00:38]}  fxe4+ {[%clk 0:01:52]} 25. Kxe4 {[%clk 0:00:38]}  a6 {[%clk 0:01:43]} 26. a4 {[%clk 0:00:23]}  Ra8 {[%clk 0:01:41]} 27. f4 {[%clk 0:00:22]}  axb5 {[%clk 0:01:40]} 28. axb5 {[%clk 0:00:22]}  Ra4 {[%clk 0:01:40]} 29. Rd4 {[%clk 0:00:20]}  h5 {[%clk 0:01:32]} 30. R1d3 {[%clk 0:00:20]}  Kd8 {[%clk 0:01:18]} 31. Rd2 {[%clk 0:00:20]}  Kc8 {[%clk 0:01:17]} 32. R2d3 {[%clk 0:00:20]}  Ra1 {[%clk 0:01:07]} 33. Rd1 {[%clk 0:00:20]}  Rxd1 {[%clk 0:01:02]} 34. Rxd1 {[%clk 0:00:21]}  Kb7 {[%clk 0:01:00]} 35. Rd4 {[%clk 0:00:19]}  c6 {[%clk 0:00:59]} 36. Rd6 {[%clk 0:00:14]}  cxb5 {[%clk 0:00:57]} 37. cxb5 {[%clk 0:00:15]}  Kc7 {[%clk 0:00:57]} 38. Kf3 {[%clk 0:00:14]}  Rf8 {[%clk 0:00:57]} 39. g4 {[%clk 0:00:14]}  Ra8 {[%clk 0:00:50]} 40. Rd3 {[%clk 0:00:13]}  hxg4+ {[%clk 0:00:46]} 41. Kxg4 {[%clk 0:00:13]}  Ra5 {[%clk 0:00:46]} 42. Rb3 {[%clk 0:00:13]}  Ra1 {[%clk 0:00:43]} 43. h5 {[%clk 0:00:11]}  Rg1+ {[%clk 0:00:42]} 44. Kh4 {[%clk 0:00:11]}  d5 {[%clk 0:00:36]} 45. exd6+ {[%clk 0:00:09]}  Kxd6 {[%clk 0:00:36]} 46. Rb4 {[%clk 0:00:05]}  Kd5 {[%clk 0:00:35]} 47. Rb2 {[%clk 0:00:04]}  Kc5 {[%clk 0:00:33]} 48. Kh3 {[%clk 0:00:02]}  Re1 {[%clk 0:00:28]} 49. Kg4 {[%clk 0:00:02]}  Re4 {[%clk 0:00:27]} 50. Kg5 {[%clk 0:00:02]}  Re1 {[%clk 0:00:19]} 0-1


[Site "https://www.chess.com"]

[Event "Titled Tuesday Blitz November 01 Late 2022"]
[White "Melikhov, Evgeny V."]
[Black "Averjanov, Alexey"]
[WhiteFideId "4122046"]
[BlackFideId "14109867"]
[WhiteElo "2169"]
[BlackElo "2633"]
[Result "0-1"]
[Round "10"]
[TimeControl "180+1"]
[Date "2022.11.02"]
[WhiteClock "0:00:01"]
[BlackClock "0:01:43"]

1. d4 {[%clk 0:03:00]}  d5 {[%clk 0:02:52]} 2. c4 {[%clk 0:03:00]}  dxc4 {[%clk 0:02:52]} 3. Nf3 {[%clk 0:03:00]}  Nf6 {[%clk 0:02:52]} 4. e3 {[%clk 0:03:00]}  e6 {[%clk 0:02:52]} 5. Bxc4 {[%clk 0:02:59]}  a6 {[%clk 0:02:52]} 6. a4 {[%clk 0:02:58]}  c5 {[%clk 0:02:52]} 7. O-O {[%clk 0:02:58]}  Nc6 {[%clk 0:02:51]} 8. Qe2 {[%clk 0:02:57]}  cxd4 {[%clk 0:02:51]} 9. Rd1 {[%clk 0:02:56]}  Be7 {[%clk 0:02:51]} 10. exd4 {[%clk 0:02:56]}  O-O {[%clk 0:02:50]} 11. Nc3 {[%clk 0:02:56]}  Nb4 {[%clk 0:02:51]} 12. Bf4 {[%clk 0:02:42]}  b6 {[%clk 0:02:47]} 13. Ne5 {[%clk 0:01:36]}  Bb7 {[%clk 0:02:45]} 14. Rac1 {[%clk 0:01:25]}  Nfd5 {[%clk 0:02:45]} 15. Bd2 {[%clk 0:01:20]}  Bg5 {[%clk 0:02:40]} 16. Ne4 {[%clk 0:01:15]}  Bxd2 {[%clk 0:02:37]} 17. Qxd2 {[%clk 0:01:11]}  a5 {[%clk 0:02:32]} 18. Bb5 {[%clk 0:01:06]}  Qe7 {[%clk 0:02:22]} 19. Nc6 {[%clk 0:00:55]}  Bxc6 {[%clk 0:02:19]} 20. Bxc6 {[%clk 0:00:55]}  Nxc6 {[%clk 0:02:19]} 21. Rxc6 {[%clk 0:00:55]}  Rac8 {[%clk 0:02:17]} 22. Rdc1 {[%clk 0:00:53]}  Qd7 {[%clk 0:02:13]} 23. Rxc8 {[%clk 0:00:37]}  Rxc8 {[%clk 0:02:14]} 24. Rxc8+ {[%clk 0:00:37]}  Qxc8 {[%clk 0:02:15]} 25. h3 {[%clk 0:00:31]}  Qc4 {[%clk 0:02:13]} 26. Nc3 {[%clk 0:00:29]}  Nxc3 {[%clk 0:02:03]} 27. Qxc3 {[%clk 0:00:29]}  Qxc3 {[%clk 0:02:02]} 28. bxc3 {[%clk 0:00:29]}  Kf8 {[%clk 0:01:58]} 29. c4 {[%clk 0:00:28]}  Ke7 {[%clk 0:01:57]} 30. f4 {[%clk 0:00:28]}  Kf6 {[%clk 0:01:51]} 31. Kf2 {[%clk 0:00:27]}  h5 {[%clk 0:01:49]} 32. g4 {[%clk 0:00:27]}  hxg4 {[%clk 0:01:49]} 33. hxg4 {[%clk 0:00:27]}  g5 {[%clk 0:01:49]} 34. c5 {[%clk 0:00:15]}  bxc5 {[%clk 0:01:47]} 35. dxc5 {[%clk 0:00:13]}  gxf4 {[%clk 0:01:46]} 36. Kf3 {[%clk 0:00:09]}  e5 {[%clk 0:01:44]} 37. Ke4 {[%clk 0:00:09]}  Ke6 {[%clk 0:01:44]} 38. g5 {[%clk 0:00:08]}  Kd7 {[%clk 0:01:44]} 39. Kxe5 {[%clk 0:00:01]}  f3 {[%clk 0:01:43]} 0-1


[Site "https://www.chess.com"]

[Event "Titled Tuesday Blitz November 01 Late 2022"]
[White "Melkumyan, Hrant"]
[Black "Sjugirov, Sanan"]
[WhiteFideId "13302485"]
[BlackFideId "4189302"]
[WhiteElo "2604"]
[BlackElo "2609"]
[Result "1-0"]
[Round "10"]
[TimeControl "180+1"]
[Date "2022.11.01"]
[WhiteClock "0:00:13"]
[BlackClock "0:00:02"]

1. d4 {[%clk 0:03:00]}  d5 {[%clk 0:02:59]} 2. c4 {[%clk 0:03:01]}  e6 {[%clk 0:03:00]} 3. Nc3 {[%clk 0:02:59]}  Nf6 {[%clk 0:02:59]} 4. cxd5 {[%clk 0:03:00]}  exd5 {[%clk 0:03:00]} 5. Bg5 {[%clk 0:03:00]}  c6 {[%clk 0:03:01]} 6. e3 {[%clk 0:03:01]}  h6 {[%clk 0:03:01]} 7. Bh4 {[%clk 0:03:01]}  Be7 {[%clk 0:03:01]} 8. Bd3 {[%clk 0:03:00]}  O-O {[%clk 0:03:02]} 9. Bg3 {[%clk 0:03:01]}  Re8 {[%clk 0:03:01]} 10. h3 {[%clk 0:02:59]}  Bb4 {[%clk 0:02:57]} 11. Ne2 {[%clk 0:02:56]}  Ne4 {[%clk 0:02:55]} 12. O-O {[%clk 0:02:52]}  Nxg3 {[%clk 0:02:53]} 13. Nxg3 {[%clk 0:02:53]}  Nd7 {[%clk 0:02:53]} 14. Qc2 {[%clk 0:02:45]}  Nf6 {[%clk 0:02:52]} 15. Rae1 {[%clk 0:02:41]}  Be6 {[%clk 0:02:50]} 16. a3 {[%clk 0:02:40]}  Bf8 {[%clk 0:02:47]} 17. Nce2 {[%clk 0:02:39]}  Rc8 {[%clk 0:02:46]} 18. Nf4 {[%clk 0:02:39]}  Bd7 {[%clk 0:02:46]} 19. Qd1 {[%clk 0:02:28]}  Qb6 {[%clk 0:02:44]} 20. Qb1 {[%clk 0:02:25]}  c5 {[%clk 0:02:39]} 21. dxc5 {[%clk 0:02:24]}  Bxc5 {[%clk 0:02:40]} 22. Nfe2 {[%clk 0:02:09]}  a5 {[%clk 0:02:36]} 23. Bf5 {[%clk 0:02:05]}  Bxf5 {[%clk 0:02:30]} 24. Nxf5 {[%clk 0:02:05]}  Ne4 {[%clk 0:02:31]} 25. Rd1 {[%clk 0:02:04]}  Rcd8 {[%clk 0:02:29]} 26. Nfd4 {[%clk 0:01:53]}  Bd6 {[%clk 0:02:17]} 27. Rd3 {[%clk 0:01:45]}  Be5 {[%clk 0:02:16]} 28. Nc3 {[%clk 0:01:45]}  Qg6 {[%clk 0:02:07]} 29. Rfd1 {[%clk 0:01:35]}  Ng5 {[%clk 0:01:58]} 30. Kf1 {[%clk 0:01:35]}  Ne4 {[%clk 0:01:49]} 31. Nf3 {[%clk 0:01:23]}  Bxc3 {[%clk 0:01:44]} 32. bxc3 {[%clk 0:01:24]}  b6 {[%clk 0:01:38]} 33. Kg1 {[%clk 0:01:05]}  Qf6 {[%clk 0:01:37]} 34. Qb2 {[%clk 0:01:03]}  Rc8 {[%clk 0:01:32]} 35. Rxd5 {[%clk 0:00:55]}  Nxc3 {[%clk 0:01:29]} 36. Qb3 {[%clk 0:00:28]}  Nxd5 {[%clk 0:01:25]} 37. Rxd5 {[%clk 0:00:29]}  Red8 {[%clk 0:01:17]} 38. Rb5 {[%clk 0:00:26]}  Rc1+ {[%clk 0:01:15]} 39. Kh2 {[%clk 0:00:26]}  Qd6+ {[%clk 0:01:13]} 40. Ne5 {[%clk 0:00:26]}  Rf8 {[%clk 0:00:34]} 41. Rd5 {[%clk 0:00:21]}  Qe6 {[%clk 0:00:31]} 42. Qd3 {[%clk 0:00:17]}  Rc3 {[%clk 0:00:29]} 43. Qd4 {[%clk 0:00:17]}  Rxa3 {[%clk 0:00:23]} 44. Rd6 {[%clk 0:00:17]}  Qf5 {[%clk 0:00:21]} 45. Ng4 {[%clk 0:00:16]}  h5 {[%clk 0:00:14]} 46. Rd5 {[%clk 0:00:16]}  Qg6 {[%clk 0:00:08]} 47. Ne5 {[%clk 0:00:17]}  Qf6 {[%clk 0:00:05]} 48. f4 {[%clk 0:00:17]}  Ra2 {[%clk 0:00:03]} 49. Qc4 {[%clk 0:00:16]}  Rb2 {[%clk 0:00:02]} 50. Nd7 {[%clk 0:00:16]}  Qg6 {[%clk 0:00:02]} 51. Rg5 {[%clk 0:00:13]}  Qc2 {[%clk 0:00:02]} 52. Nf6+ {[%clk 0:00:13]}  Kh8 {[%clk 0:00:02]} 53. Rxh5+ {[%clk 0:00:13]} 1-0


[Site "https://www.chess.com"]